{"text_format":"3","workbook":"xlsx","n_sheets":6,"sheets":["SEMESTRAS","KREDITAI","BIUDŽETAS","GRYNOSIOS MĖNESIO IŠLAIDOS","SEMESTRO IŠLAIDOS","KNYGOS"],"not_rendered":{"defined_names":21},"read":"whole","date_system":"1900"}

{"sheet":"SEMESTRAS","index":0,"n_rows":29,"n_cols":9,"rows_kept":29,"merged":[[2,3,2,4]]}
[null,"MANO PASKAITŲ TVARKARAŠTIS"]
[null,"RUDENS SEMESTRAS"]
[null,null,"PRADŽIOS LAIKAS","LAIKO INTERVALAS",null,"METAI"]
[null,null,"09:00:00",60,"(Protokoluose)"]
[null,"LAIKAS ","PR","AN","TR","KT","PN","ŠT","SK"]
[null,{"$f":"PradžiosLaikas+TIME(0,(ROW(A1)-1)*LaikoIntervalas,0)","v":"09:00:00"},"Pusryčiai","Pusryčiai","Pusryčiai","Pusryčiai","Pusryčiai"]
[null,"10:00:00","Verslas: korpusas B, 256 aud."]
[null,"11:00:00",{"$nulls":3},"Fizika: Laboratorija \nPastatas J, 309 aud."]
[null,"12:00:00"]
[null,"13:00:00"]
[null,"14:00:00"]
[null,"15:00:00"]
[null,"16:00:00"]
[null,"17:00:00"]
[null,"18:00:00"]
[null,"19:00:00"]
[null,"20:00:00"]
[null,"21:00:00"]
[null,"22:00:00"]
[null,"23:00:00"]
[null,1]
[null,1.0416666666666665]
[null,1.0833333333333335]
[null,1.125]
[null,1.1666666666666665]
[null,1.2083333333333335]
[null,1.25]
[null,1.2916666666666665]
[null,1.3333333333333335]

{"sheet":"KREDITAI","index":1,"n_rows":17,"n_cols":8,"rows_kept":17}
[null,"UNIVERSITETAS"]
[null,"KREDITŲ PLANAVIMO PRIEMONĖ"]
[null,"Laipsnis",{"$f":"Metai","v":"METAI"}]
[null,"BENDROJI PAŽANGA",null,"BENDROJI PAŽANGA"]
[null,{"$f":"AVERAGE(Kursai[ĮVERTINIMAS])","v":3.5},{"$f":"IFERROR(TEXT(AVERAGEIF(Kursai[ĮVYKDYTA],\"Taip\",Kursai[ĮVERTINIMAS]),\"0,00\"),\"0,00\")&\" Dabartinis vidurkis\"","v":"3,50 Dabartinis vidurkis"},{"$f":"COUNTIF(Kursai[ĮVYKDYTA],\"Taip\")/COUNTA(Kursai[KURSO PAVADINIMAS])","v":0.6666666666666666},{"$f":"TEXT(COUNTIF(Kursai[ĮVYKDYTA],\"Taip\")/COUNTA(Kursai[KURSO PAVADINIMAS]),\"0\"\" \"\"%\")&\" įvykdyta\"","v":"67 % įvykdyta"}]
[null,"Pastaba Toliau pateikta kreditų suvestinė automatiškai užpildoma jūsų universiteto kursų lentelės įrašais"]
[null,"REIKALAVIMAS","IŠ VISO KREDITŲ","GAUTA","REIKIA"]
[null,"Akademinė specializacija",{"$f":"IF(SUMIF(Kursai[REIKALAVIMAS],KREDITAI!$B8,Kursai[KREDITAI])=0,\"0\",SUMIF(Kursai[REIKALAVIMAS],KREDITAI!$B8,Kursai[KREDITAI]))","v":4},{"$f":"SUMIFS(Kursai[KREDITAI],Kursai[REIKALAVIMAS],KREDITAI!$B8,Kursai[ĮVYKDYTA],\"Taip\")","v":4},{"$f":"SUMIF(Kursai[REIKALAVIMAS],KREDITAI!$B8,Kursai[KREDITAI])-SUMIFS(Kursai[KREDITAI],Kursai[REIKALAVIMAS],KREDITAI!$B8,Kursai[ĮVYKDYTA],\"Taip\")","v":0}]
[null,"Akademinė neprofilinė disciplina",{"$f":"IF(SUMIF(Kursai[REIKALAVIMAS],KREDITAI!$B9,Kursai[KREDITAI])=0,\"0\",SUMIF(Kursai[REIKALAVIMAS],KREDITAI!$B9,Kursai[KREDITAI]))","v":3},{"$f":"SUMIFS(Kursai[KREDITAI],Kursai[REIKALAVIMAS],KREDITAI!$B9,Kursai[ĮVYKDYTA],\"Taip\")","v":0},{"$f":"SUMIF(Kursai[REIKALAVIMAS],KREDITAI!$B9,Kursai[KREDITAI])-SUMIFS(Kursai[KREDITAI],Kursai[REIKALAVIMAS],KREDITAI!$B9,Kursai[ĮVYKDYTA],\"Taip\")","v":3}]
[null,"Pasirenkamasis kursas",{"$f":"IF(SUMIF(Kursai[REIKALAVIMAS],KREDITAI!$B10,Kursai[KREDITAI])=0,\"0\",SUMIF(Kursai[REIKALAVIMAS],KREDITAI!$B10,Kursai[KREDITAI]))","v":2},{"$f":"SUMIFS(Kursai[KREDITAI],Kursai[REIKALAVIMAS],KREDITAI!$B10,Kursai[ĮVYKDYTA],\"Taip\")","v":2},{"$f":"SUMIF(Kursai[REIKALAVIMAS],KREDITAI!$B10,Kursai[KREDITAI])-SUMIFS(Kursai[KREDITAI],Kursai[REIKALAVIMAS],KREDITAI!$B10,Kursai[ĮVYKDYTA],\"Taip\")","v":0}]
[null,"Bendrasis mokomasis dalykas",{"$f":"IF(SUMIF(Kursai[REIKALAVIMAS],KREDITAI!$B11,Kursai[KREDITAI])=0,\"0\",SUMIF(Kursai[REIKALAVIMAS],KREDITAI!$B11,Kursai[KREDITAI]))","v":"0"},{"$f":"SUMIFS(Kursai[KREDITAI],Kursai[REIKALAVIMAS],KREDITAI!$B11,Kursai[ĮVYKDYTA],\"Taip\")","v":0},{"$f":"SUMIF(Kursai[REIKALAVIMAS],KREDITAI!$B11,Kursai[KREDITAI])-SUMIFS(Kursai[KREDITAI],Kursai[REIKALAVIMAS],KREDITAI!$B11,Kursai[ĮVYKDYTA],\"Taip\")","v":0}]
[null,"Bendroji suma",{"$f":"SUBTOTAL(109,KREDITAI!$C$8:$C$11)","v":9},{"$f":"SUBTOTAL(109,KREDITAI!$D$8:$D$11)","v":6},{"$f":"SUBTOTAL(109,KREDITAI!$E$8:$E$11)","v":3}]
[null,"Kursai"]
[null,"KURSO PAVADINIMAS","KURSO NR.","REIKALAVIMAS","KREDITAI","ĮVYKDYTA","ĮVERTINIMAS","SEMESTRAS"]
[null,"1 kursas","Numeris","Akademinė specializacija",4,"Taip",{"v":4,"d":"4.0"},"1 semestras"]
[null,"2 kursas","Numeris","Akademinė neprofilinė disciplina",3,"Ne",null,"1 semestras"]
[null,"3 kursas","Numeris","Pasirenkamasis kursas",2,"Taip",{"v":3,"d":"3.0"},"1 semestras"]

{"sheet":"BIUDŽETAS","index":2,"n_rows":15,"n_cols":4,"rows_kept":15,"merged":[[5,1,5,2]]}
[null,{"$f":"Universitetas","v":"UNIVERSITETAS"}]
[null,"BIUDŽETO STEBĖJIMO PRIEMONĖ"]
[null,"Mano biudžetas",{"$f":"Metai","v":"METAI"}]
[null,"PROCENTINĖ IŠLEISTŲ PAJAMŲ DALIS"]
[null,{"$f":"GRYNOSIOS_MĖNESIO_IŠLAIDOS/GRYNOSIOS_MĖNESIO_PAJAMOS","v":{"v":0.7450909090909091,"d":"1 €"}}]
[null,{"$f":"B5","v":0.7450909090909091}]
[null,"GRYNOSIOS MĖNESIO PAJAMOS","GRYNOSIOS MĖNESIO IŠLAIDOS","LIKUTIS"]
[null,{"$f":"C10","v":{"v":1375,"d":"1,375 €"}},{"$f":"'GRYNOSIOS MĖNESIO IŠLAIDOS'!C4+'SEMESTRO IŠLAIDOS'!D4","v":{"v":1024.5,"d":"1,025 €"}},{"$f":"GRYNOSIOS_MĖNESIO_PAJAMOS-GRYNOSIOS_MĖNESIO_IŠLAIDOS","v":{"v":350.5,"d":"351 €"}}]
[null,"Semestro mėnesių skaičius",4]
[null,"MĖNESIO PAJAMOS",{"$f":"SUM(MėnesioPajamos[SUMA])","v":{"v":1375,"d":"1,375 €"}}]
[null,"PREKĖ","SUMA"]
[null,"Nuolatinės pajamos",{"v":750,"d":"750 €"}]
[null,"Finansinė pagalba",{"v":250,"d":"250 €"}]
[null,"Paskolos",{"v":250,"d":"250 €"}]
[null,"Kitos pajamos",{"v":125,"d":"125 €"}]

{"sheet":"GRYNOSIOS MĖNESIO IŠLAIDOS","index":3,"n_rows":15,"n_cols":3,"rows_kept":15}
[null,{"$f":"Universitetas","v":"UNIVERSITETAS"}]
[null,"BIUDŽETO STEBĖJIMO PRIEMONĖ"]
[null,"Mėnesio išlaidos",{"$f":"Metai","v":"METAI"}]
[null,"MĖNESIO IŠLAIDOS",{"$f":"SUM(MėnesioIšlaidos[SUMA])","v":{"v":837,"d":"837 €"}}]
[null,"PREKĖ","SUMA"]
[null,"Nuoma",{"v":150,"d":"150 €"}]
[null,"Komunalinės paslaugos",{"v":25,"d":"25 €"}]
[null,"Mobilusis telefonas",{"v":37,"d":"37 €"}]
[null,"Maistas",{"v":125,"d":"125 €"}]
[null,"Išlaidos automobiliui",{"v":25,"d":"25 €"}]
[null,"Studijų paskolos",{"v":250,"d":"250 €"}]
[null,"Kredito kortelės",{"v":138,"d":"138 €"}]
[null,"Draudimas",{"v":62,"d":"62 €"}]
[null,"Pramogos",{"v":25,"d":"25 €"}]
[null,"Papildomos išlaidos",{"v":0,"d":"0 €"}]

{"sheet":"SEMESTRO IŠLAIDOS","index":4,"n_rows":11,"n_cols":4,"rows_kept":11}
[null,{"$f":"Universitetas","v":"UNIVERSITETAS"}]
[null,"BIUDŽETO STEBĖJIMO PRIEMONĖ"]
[null,"Semestro išlaidos",{"$f":"Metai","v":"METAI"}]
[null,"SEMESTRO IŠLAIDOS (bendroji suma / per mėnesį)",{"$f":"SUM(SemestroIšlaidos[SUMA])","v":{"v":750,"d":"750 €"}},{"$f":"SUM(SemestroIšlaidos[PER MĖNESĮ])","v":{"v":187.5,"d":"188 €"}}]
[null,"PREKĖ","SUMA","PER MĖNESĮ"]
[null,"Mokestis už mokslą",{"v":375,"d":"375 €"},{"$f":"SemestroIšlaidos[[#This Row],[SUMA]]/Mėnesių_semestre","v":{"v":93.75,"d":"94 €"}}]
[null,"Mokestis už laboratoriją",{"v":125,"d":"125 €"},{"$f":"SemestroIšlaidos[[#This Row],[SUMA]]/Mėnesių_semestre","v":{"v":31.25,"d":"31 €"}}]
[null,"Knygos",{"v":250,"d":"250 €"},{"$f":"SemestroIšlaidos[[#This Row],[SUMA]]/Mėnesių_semestre","v":{"v":62.5,"d":"63 €"}}]
[null,"Indėliai",{"v":0,"d":"0 €"},{"$f":"SemestroIšlaidos[[#This Row],[SUMA]]/Mėnesių_semestre","v":{"v":0,"d":"0 €"}}]
[null,"Transportas",{"v":0,"d":"0 €"},{"$f":"SemestroIšlaidos[[#This Row],[SUMA]]/Mėnesių_semestre","v":{"v":0,"d":"0 €"}}]
[null,"Kiti mokesčiai",{"v":0,"d":"0 €"},{"$f":"SemestroIšlaidos[[#This Row],[SUMA]]/Mėnesių_semestre","v":{"v":0,"d":"0 €"}}]

{"sheet":"KNYGOS","index":5,"n_rows":7,"n_cols":7,"rows_kept":7}
[null,{"$f":"Universitetas","v":"UNIVERSITETAS"}]
[null,"KNYGŲ STEBĖJIMO PRIEMONĖ"]
[null,"Knygų sąrašas"]
[null,"ANTRAŠTĖ","AUTORIUS","KURSAS","KUR ĮSIGYTI?","ISBN","PASTABOS"]
[null,"Knygos pavadinimas","Autorius","Kursas","Vieta","Numeris"]
[null,"Knygos pavadinimas","Autorius","Kursas","Vieta","Numeris"]
[null,"Knygos pavadinimas","Autorius","Kursas","Vieta","Numeris"]